bitfinex/quotes_SOLUSD_20240914
["timestamp","ask_amount","ask_price","bid_price","bid_amount"]
[1726347547906,0.253926,137.39,137.37,0.12549]
[1726347549301,0.253926,137.39,137.36,34.31644249]
[1726347549506,0.253926,137.39,137.36,20.0]
[1726347549991,0.253926,137.39,137.35,20.0]
[1726347550309,0.253926,137.39,137.32,6.2275]
[1726347550606,0.253926,137.39,137.33,14.31644249]
[1726347551489,0.253926,137.39,137.34,20.0]
[1726347553594,0.253926,137.39,137.34,14.31644249]
[1726347553811,0.253926,137.39,137.33,20.0]
[1726347554018,0.253926,137.39,137.32,23.776884]
[1726347555494,0.253926,137.39,137.32,20.12549]
[1726347555689,15.6832,137.38,137.32,20.0]
[1726347556302,15.6832,137.38,137.31,14.31644249]
[1726347556507,15.6832,137.38,137.32,20.0]
[1726347557921,15.6832,137.38,137.29,20.0]
[1726347558219,15.6832,137.38,137.33,20.0]
[1726347564208,15.6832,137.38,137.3,0.12549]
[1726347564405,22.9622,137.38,137.29,20.0]
[1726347564609,22.9622,137.38,137.29,34.31644249]
[1726347565220,7.2796,137.37,137.29,20.0]
[1726347568124,7.2796,137.37,137.25,20.253926]
[1726347568418,7.2796,137.37,137.29,20.0]
[1726347571124,7.2796,137.37,137.29,14.31644249]
[1726347571422,7.2796,137.37,137.3,20.0]
[1726347573134,24.027864,137.37,137.3,20.0]
[1726347573302,24.027864,137.37,137.3,34.31644249]
[1726347574910,23.776884,137.37,137.3,34.31644249]
[1726347576204,22.9624,137.38,137.3,34.31644249]
[1726347578527,15.6832,137.38,137.3,34.31644249]
[1726347579108,15.6832,137.38,137.29,14.31644249]
[1726347579303,15.6832,137.38,137.3,20.0]
[1726347579905,22.9623,137.38,137.28,0.25098]
[1726347580123,22.9623,137.38,137.3,20.0]
[1726347589532,22.9623,137.38,137.29,14.31644249]
[1726347589732,22.9623,137.38,137.3,20.0]
[1726347602050,15.6832,137.38,137.3,20.0]
[1726347602351,15.6832,137.38,137.3,14.31644249]
[1726347602536,15.6832,137.38,137.31,20.0]
[1726347604133,15.6832,137.38,137.3,20.0]
[1726347606066,15.6832,137.38,137.3,34.31644249]
[1726347607667,15.6832,137.38,137.29,34.31644249]
[1726347607965,15.6832,137.38,137.31,20.0]
[1726347612532,22.9623,137.38,137.31,20.0]
[1726347612764,22.9623,137.38,137.29,20.0]
[1726347613055,22.9623,137.38,137.28,20.0]
[1726347613264,22.9623,137.38,137.3,20.0]
[1726347613569,13.7296,137.35,137.25,6.515926]
[1726347613745,13.7296,137.35,137.28,20.0]
[1726347613746,6.4489,137.35,137.28,20.0]
[1726347614346,6.4489,137.35,137.29,14.31644249]
[1726347614762,6.4489,137.35,137.3,23.902374]
[1726347615469,6.4489,137.35,137.28,34.31644249]
[1726347615767,6.4489,137.35,137.29,23.902374]
[1726347636779,16.5886,137.36,137.3,34.31644249]
[1726347637595,16.5886,137.36,137.31,23.902374]
[1726347637796,16.5886,137.36,137.31,38.21881649]
[1726347637983,16.5886,137.36,137.3,34.31644249]
[1726347648715,16.5886,137.36,137.31,1.45618593]
[1726347649001,16.5886,137.36,137.32,20.0]
[1726347649205,16.5886,137.36,137.33,1.45606457]
[1726347660522,16.5886,137.36,137.32,20.0]
[1726347662113,16.5886,137.36,137.3,20.0]
[1726347664203,16.5886,137.36,137.3,34.31644249]
[1726347664422,16.5886,137.36,137.31,1.45619734]
[1726347665621,16.5886,137.36,137.3,20.0]
[1726347673020,16.5886,137.36,137.29,24.153354]
[1726347674437,16.5886,137.36,137.3,20.0]
[1726347693243,16.5886,137.36,137.25,22.674226]
[1726347693244,16.5886,137.36,137.28,20.0]
[1726347693845,23.8689,137.36,137.28,20.0]
[1726347695553,23.8689,137.36,137.28,34.31644249]
[1726347696120,16.5886,137.36,137.28,34.31644249]
[1726347699940,16.5886,137.36,137.3,20.0]
[1726347702270,16.5886,137.36,137.31,15.7726215]
[1726347703266,16.5886,137.36,137.32,1.45617049]
[1726347703849,16.5886,137.36,137.31,14.31644249]
[1726347705865,16.5886,137.36,137.32,21.45614194]
[1726347706173,15.380226,137.39,137.34,34.31644249]
[1726347709170,15.380226,137.39,137.34,20.0]
[1726347710350,15.380226,137.39,137.33,20.0]
[1726347710580,15.380226,137.39,137.32,20.0]
[1726347710771,15.380226,137.39,137.32,14.31644249]
[1726347711074,15.380226,137.39,137.33,20.0]
[1726347713079,22.658926,137.39,137.32,20.0]
[1726347713463,22.658926,137.39,137.31,44.027864]
[1726347714281,7.279,137.38,137.31,23.776884]
[1726347714476,7.279,137.38,137.29,14.44193249]
[1726347715386,7.279,137.38,137.3,20.0]
[1726347716277,7.279,137.38,137.29,14.44193249]
[1726347717990,7.279,137.38,137.3,20.0]
[1726347727887,0.253926,137.39,137.3,20.0]
[1726347728074,29.5662,137.37,137.3,20.0]
[1726347728578,29.5662,137.37,137.29,44.153354]
[1726347730976,29.5662,137.37,137.27,34.31644249]
[1726347730977,7.2802,137.36,137.27,34.31644249]
[1726347731186,22.2866,137.37,137.29,20.0]
[1726347731187,29.5662,137.37,137.29,20.0]
[1726347736097,7.2802,137.36,137.29,20.0]
[1726347736403,15.3326,137.35,137.29,20.0]
[1726347737205,22.6132,137.35,137.26,14.56742249]
[1726347737500,22.6132,137.35,137.27,23.776884]
[1726347738477,22.6132,137.35,137.28,20.0]
[1726347745401,7.2806,137.35,137.27,23.776884]
[1726347745631,16.2742,137.3,137.25,0.253926]
[1726347748685,22.4305,137.3,137.25,0.253926]
[1726347749003,29.7139,137.3,137.25,0.253926]
[1726347750888,7.2839,137.29,137.25,0.253926]
[1726347751087,7.2845,137.28,137.25,0.253926]
[1726347763098,24.027864,137.29,137.25,0.253926]
[1726347764096,31.312064,137.29,137.25,0.253926]
[1726347766698,7.2843,137.28,137.25,0.253926]
[1726347767215,7.284,137.29,137.25,0.253926]
[1726347771303,7.2844,137.28,137.25,0.253926]
[1726347786521,7.284,137.29,137.25,0.253926]
[1726347786917,7.2843,137.28,137.25,0.253926]
[1726347806042,23.902374,137.29,137.25,0.253926]
[1726347806043,23.5576,137.3,137.25,0.253926]
[1726347806229,14.90348919,137.31,137.25,0.253926]
[1726347806435,7.2824,137.32,137.25,0.253926]
[1726347806638,7.2824,137.32,137.25,6.573326]
[1726347814435,7.40729,137.33,137.26,16.2835]
[1726347820965,20.0,137.32,137.26,16.2835]
[1726347822370,7.2822,137.32,137.26,16.2835]
[1726347822547,20.0,137.31,137.26,16.2835]
[1726347824270,7.2827,137.31,137.26,16.2835]
[1726347824650,7.2833,137.3,137.26,16.2835]
[1726347824864,44.027864,137.31,137.26,16.2835]
[1726347825046,7.2834,137.3,137.26,16.2835]
[1726347831871,27.2829,137.31,137.26,16.2835]
[1726347837962,7.2833,137.3,137.26,16.2835]
[1726347838562,51.185274,137.31,137.26,16.2835]
[1726347842879,27.2829,137.31,137.26,16.2835]
[1726347845864,27.2829,137.31,137.26,17.74045639]
[1726347846061,27.2829,137.31,137.26,16.2835]
[1726347846485,20.0,137.31,137.26,16.2835]
[1726347848294,27.2819,137.33,137.26,16.2835]
[1726347848794,27.2819,137.33,137.27,6.2813]
[1726347849494,9.54733575,137.36,137.29,16.1642]
[1726347849679,16.82793575,137.36,137.29,16.1642]
[1726347849991,7.2806,137.36,137.31,6.2813]
[1726347850374,7.2797,137.37,137.31,6.2813]
[1726347850974,20.0,137.36,137.31,6.2813]
[1726347851496,27.2802,137.36,137.31,6.2813]
[1726347851678,36.82753575,137.36,137.31,6.2813]
[1726347853299,16.82803575,137.35,137.31,6.2813]
[1726347854585,20.12549,137.33,137.31,6.2813]
[1726347854895,20.12549,137.33,137.29,16.1642]
[1726347855098,20.0,137.31,137.28,6.5285]
[1726347855697,27.2828,137.31,137.28,6.5285]
[1726347855897,7.2834,137.3,137.28,6.5285]
[1726347856401,27.2829,137.31,137.28,6.5285]
[1726347861999,7.2829,137.31,137.28,6.5285]
[1726347889025,7.2833,137.3,137.28,6.5285]
[1726347889229,7.2829,137.31,137.28,6.5285]
[1726347902624,7.2829,137.31,137.26,15.9922]
[1726347902625,20.0,137.29,137.26,15.9922]
[1726347902816,20.0,137.29,137.27,3.87017594]
[1726347903016,27.2838,137.29,137.26,15.9922]
[1726347903218,27.2838,137.29,137.27,3.8701967]
[1726347903219,20.0,137.29,137.27,3.8701967]
[1726347903438,7.2836,137.3,137.26,15.9922]
[1726347903633,20.0,137.29,137.27,3.87014113]
[1726347903836,20.0,137.29,137.26,15.9922]
[1726347904013,20.0,137.29,137.27,3.86825105]
[1726347904218,20.0,137.29,137.26,15.9922]
[1726347904417,20.0,137.29,137.27,3.86826411]
[1726347904625,20.0,137.29,137.26,15.9922]
[1726347905019,7.53388,137.31,137.26,15.9922]
[1726347905226,20.0,137.3,137.26,15.9922]
[1726347905535,20.0,137.3,137.27,3.86826411]
[1726347905735,20.0,137.31,137.28,10.31386411]
[1726347905926,20.0,137.31,137.28,6.4456]
[1726347910543,7.2834,137.3,137.28,6.4456]
[1726347910728,20.0,137.29,137.26,15.9922]
[1726347911051,20.0,137.29,137.27,3.86769401]
[1726347911251,20.0,137.29,137.26,15.9922]
[1726347911448,20.0,137.29,137.27,3.86769401]
[1726347912039,20.0,137.29,137.26,15.9922]
[1726347912245,27.2839,137.29,137.26,15.9922]
[1726347913554,7.2834,137.3,137.26,15.9922]
[1726347914148,20.0,137.29,137.26,15.9922]
[1726347918730,7.2839,137.29,137.26,15.9922]
[1726347918944,7.2839,137.29,137.25,0.253926]
[1726347921454,24.153354,137.28,137.25,0.253926]
[1726347921661,20.0,137.27,137.25,0.253926]
[1726347922244,27.285,137.27,137.25,0.253926]
[1726347924558,0.12549,137.26,137.25,0.253926]
[1726347932172,31.312364,137.28,137.25,0.253926]
[1726347946570,8.88531677,137.29,137.25,6.414626]
[1726347946890,16.62493526,137.34,137.25,6.414626]
[1726347947074,7.2831,137.31,137.25,6.414626]
[1726347947477,7.2823,137.32,137.25,6.414626]
[1726347947877,0.12549,137.31,137.25,20.73106849]
[1726347951094,0.12549,137.31,137.25,6.414626]
[1726347956805,44.027864,137.32,137.25,6.414626]
[1726347956984,23.902374,137.3,137.25,6.414626]
[1726347958406,31.185674,137.3,137.25,6.414626]
[1726347963396,7.40929,137.29,137.25,6.414626]
[1726347963728,7.53548,137.28,137.25,6.414626]
[1726347964791,24.027864,137.28,137.25,6.414626]
[1726347967296,31.312264,137.28,137.25,6.414626]
[1726347970318,24.027864,137.28,137.25,6.414626]
[1726347970520,0.12549,137.29,137.25,6.414626]
[1726347971095,7.73729776,137.31,137.25,6.414626]
[1726347971319,7.2827,137.32,137.25,20.73106849]
[1726347971623,27.40839,137.31,137.25,6.414626]
[1726347972404,27.2829,137.31,137.25,6.414626]
[1726347974532,0.12549,137.3,137.25,6.414626]
[1726347975608,31.185774,137.3,137.25,6.414626]
[1726347977924,0.12549,137.3,137.25,6.414626]
[1726347978227,23.902374,137.31,137.25,6.414626]
[1726347979327,31.185274,137.31,137.25,6.414626]
[1726347979626,31.185274,137.31,137.25,10.2838329]
[1726347981134,23.902374,137.31,137.25,10.2838329]
[1726347981423,7.2833,137.3,137.25,6.414626]
[1726347986814,7.2833,137.3,137.25,14.15633976]
[1726347989119,7.2833,137.3,137.25,10.28553918]
[1726347989839,0.12549,137.29,137.25,10.28553918]
[1726347990145,0.12549,137.28,137.25,10.28553918]
[1726347991013,0.12549,137.27,137.25,10.28553918]
[1726347991237,0.25098,137.27,137.25,10.28553918]
[1726347992326,7.53588,137.27,137.25,10.28553918]
[1726347994533,7.53588,137.27,137.25,4.12483918]
[1726347994738,7.53588,137.27,137.25,0.253926]
[1726347996843,23.902374,137.26,137.25,0.253926]
[1726347999741,31.313264,137.26,137.25,0.253926]
[1726347999945,31.438754,137.26,137.25,0.253926]
[1726348006068,30.438754,137.26,137.25,0.253926]
[1726348029951,23.153354,137.26,137.25,0.253926]
[1726348031273,7.285,137.27,137.25,0.253926]
[1726348035778,7.2844,137.28,137.25,0.253926]
[1726348041066,7.2849,137.27,137.25,0.253926]
[1726348061803,7.40999,137.28,137.25,0.253926]
[1726348062109,7.2845,137.28,137.25,0.253926]
[1726348063395,7.2839,137.29,137.25,15.992926]
[1726348063597,7.60420834,137.31,137.25,22.470726]
[1726348063800,7.2824,137.32,137.25,22.470726]
[1726348064305,7.2828,137.31,137.25,22.470726]
[1726348105170,7.2828,137.31,137.26,3.87099142]
[1726348106175,7.2828,137.31,137.25,22.470726]
[1726348113685,1.27012459,137.33,137.26,22.03032876]
[1726348113885,27.74723575,137.37,137.27,35.95304249]
[1726348114087,20.0,137.36,137.28,1.45666672]
[1726348114266,27.6110649,137.36,137.28,1.45666672]
[1726348114979,24.027864,137.35,137.28,1.45666672]
[1726348115188,20.25098,137.34,137.28,1.45666672]
[1726348115482,7.2818,137.33,137.28,1.45666672]
[1726348118297,7.2818,137.33,137.27,21.6366]
[1726348120090,7.2823,137.32,137.27,21.6366]
[1726348140410,7.2818,137.33,137.27,35.95304249]
[1726348145184,16.82913575,137.33,137.27,35.95304249]
[1726348145391,16.82913575,137.33,137.27,21.6366]
[1726348149915,20.0,137.32,137.27,21.6366]
[1726348154602,27.2822,137.32,137.27,21.6366]
[1726348166413,27.2822,137.32,137.28,3.87070148]
[1726348166727,27.2822,137.32,137.27,21.6366]
[1726348167227,27.2822,137.32,137.28,3.87070148]
[1726348167724,27.2822,137.32,137.27,21.6366]
[1726348167928,27.2822,137.32,137.28,3.87070148]
[1726348168136,27.2822,137.32,137.27,21.6366]
[1726348168340,27.2822,137.32,137.28,3.87069342]
[1726348168540,27.2822,137.32,137.27,21.6366]
[1726348168832,27.2822,137.32,137.28,3.87069342]
[1726348169131,27.2822,137.32,137.27,21.6366]
[1726348169304,27.2822,137.32,137.28,3.87070148]
[1726348169508,27.2822,137.32,137.27,21.6366]
[1726348169719,27.2822,137.32,137.28,3.87070076]
[1726348169928,27.2822,137.32,137.27,21.6366]
[1726348170111,27.2822,137.32,137.28,3.87070148]
[1726348170430,27.2822,137.32,137.27,21.6366]
[1726348170733,27.2822,137.32,137.28,3.87067427]
[1726348170920,27.2822,137.32,137.27,21.6366]
[1726348171640,27.2822,137.32,137.28,3.87067355]
[1726348171806,27.2822,137.32,137.27,21.6366]
[1726348172010,27.2822,137.32,137.28,3.87070076]
[1726348172214,27.2822,137.32,137.27,21.6366]
[1726348172413,27.2822,137.32,137.28,3.87070076]
[1726348172734,27.2822,137.32,137.27,21.6366]
[1726348172914,27.2822,137.32,137.28,3.87070148]
[1726348173117,27.2822,137.32,137.27,21.6366]
[1726348173321,27.2822,137.32,137.28,3.87070076]
[1726348173527,27.2822,137.32,137.27,21.6366]
[1726348173834,27.2822,137.32,137.28,3.87070076]
[1726348174214,27.2822,137.32,137.27,21.6366]
[1726348174413,27.2822,137.32,137.28,3.87070076]
[1726348174614,27.2822,137.32,137.27,21.6366]
[1726348174827,27.2822,137.32,137.28,3.87070148]
[1726348175022,7.40829,137.31,137.27,21.6366]
[1726348175246,7.2828,137.31,137.28,3.87089269]
[1726348175537,7.2828,137.31,137.27,21.6366]
[1726348175837,7.2828,137.31,137.28,3.87089198]
[1726348176038,7.2828,137.31,137.27,21.6366]
[1726348176235,7.2828,137.31,137.28,3.87091991]
[1726348176421,7.2828,137.31,137.27,21.6366]
[1726348176623,7.2828,137.31,137.28,3.87091184]
[1726348176835,7.2828,137.31,137.27,21.6366]
[1726348177039,7.2828,137.31,137.28,3.87091112]
[1726348177228,7.2828,137.31,137.27,21.6366]
[1726348177941,7.2828,137.31,137.28,3.87091991]
[1726348178434,7.2828,137.31,137.27,21.6366]
[1726348181844,8.80253995,137.32,137.27,21.6366]
[1726348182022,0.12549,137.32,137.27,21.6366]
[1726348182227,20.12549,137.32,137.28,3.87073666]
[1726348182527,20.12549,137.32,137.27,21.6366]
[1726348182735,20.12549,137.32,137.28,3.87073666]
[1726348182934,20.12549,137.32,137.27,21.6366]
[1726348183133,20.12549,137.32,137.28,3.87073594]
[1726348183346,20.12549,137.32,137.27,21.6366]
[1726348183546,20.12549,137.32,137.28,3.87070516]
[1726348183750,20.12549,137.32,137.27,21.6366]
[1726348183930,20.12549,137.32,137.28,3.87070516]
[1726348184125,20.12549,137.32,137.27,21.6366]
[1726348184325,20.12549,137.32,137.28,3.87070588]
[1726348184549,20.12549,137.32,137.27,21.6366]
[1726348184736,20.12549,137.32,137.28,3.87070076]
[1726348184938,20.12549,137.32,137.27,21.6366]
[1726348185850,20.12549,137.32,137.28,3.87072869]
[1726348186054,20.12549,137.32,137.27,21.6366]
[1726348186350,20.12549,137.32,137.28,3.87070148]
[1726348186544,20.12549,137.32,137.27,21.6366]
[1726348186728,20.12549,137.32,137.28,3.87070148]
[1726348186928,20.12549,137.32,137.27,21.6366]
[1726348187130,20.12549,137.32,137.28,3.87072798]
[1726348187339,20.12549,137.32,137.27,21.6366]
[1726348187536,20.12549,137.32,137.28,3.87072869]
[1726348187736,20.12549,137.32,137.27,21.6366]
[1726348187947,20.12549,137.32,137.28,3.87070149]
[1726348188149,20.12549,137.32,137.27,21.6366]
[1726348188529,20.12549,137.32,137.28,3.87070149]
[1726348188743,20.12549,137.32,137.27,21.6366]
[1726348189059,20.12549,137.32,137.28,3.87072871]
[1726348189352,20.12549,137.32,137.27,21.6366]
[1726348202346,20.12549,137.32,137.27,6.257]
[1726348203861,27.40779,137.32,137.27,6.257]
[1726348204246,27.40779,137.32,137.25,20.253926]
[1726348204446,24.027864,137.31,137.25,0.253926]
[1726348204841,31.310764,137.31,137.25,0.253926]
[1726348205250,31.310764,137.31,137.25,1.71091421]
[1726348205461,27.40779,137.32,137.25,16.02734844]
[1726348212165,27.40779,137.32,137.25,1.71090595]
[1726348219983,20.0,137.32,137.25,1.71090595]
[1726348220600,7.61216992,137.34,137.26,14.31644249]
[1726348220767,7.61216992,137.34,137.33,14.31644249]
[1726348220961,0.253926,137.39,137.34,20.0]
[1726348221161,0.253926,137.39,137.35,1.45591913]
[1726348221393,0.253926,137.39,137.34,34.31644249]
[1726348221567,0.253926,137.39,137.34,20.0]
[1726348221767,0.253926,137.39,137.34,21.45595848]
[1726348222477,0.253926,137.39,137.34,15.77240097]
[1726348223076,0.253926,137.39,137.33,20.0]
[1726348223271,0.253926,137.39,137.33,34.31644249]
[1726348224289,0.253926,137.39,137.34,14.31644249]
[1726348226391,0.253926,137.39,137.35,14.31644249]
[1726348241494,0.253926,137.39,137.36,1.45421503]
[1726348241686,0.253926,137.39,137.37,14.31644249]
[1726348242012,0.253926,137.39,137.33,35.2035]
[1726348242301,0.253926,137.39,137.36,14.31644249]
[1726348243080,0.253926,137.39,137.37,15.77114718]
[1726348243289,0.253926,137.39,137.38,15.77104128]
[1726348243608,0.253926,137.39,137.38,14.31644249]
[1726348245292,0.253926,137.39,137.38,34.31644249]
[1726348245615,0.253926,137.39,137.38,35.77061775]
[1726348246603,0.253926,137.39,137.38,34.31644249]
[1726348249211,0.253926,137.39,137.38,20.0]
[1726348249387,0.253926,137.39,137.38,34.31644249]
[1726348256422,0.253926,137.39,137.38,20.0]
[1726348276709,0.253926,137.39,137.38,21.45558599]
[1726348278655,0.253926,137.39,137.38,35.77202848]
[1726348283353,0.253926,137.39,137.38,39.63905586]
[1726348284454,0.253926,137.39,137.38,35.77202848]
[1726348284643,0.253926,137.39,137.38,39.6390478]
[1726348288332,0.253926,137.39,137.38,35.77202848]
[1726348288858,0.253926,137.39,137.38,39.63902867]
[1726348291153,0.253926,137.39,137.38,23.86700019]
[1726348291657,0.253926,137.39,137.38,20.0]
[1726348291860,0.253926,137.39,137.38,23.86702873]
[1726348295042,0.253926,137.39,137.38,23.86702828]
[1726348295759,0.253926,137.39,137.38,38.18347077]
[1726348297569,0.253926,137.39,137.38,3.86702828]
[1726348297794,0.253926,137.39,137.31,3.86702828]
[1726348298079,0.253926,137.39,137.33,14.31644249]
[1726348298249,0.253926,137.39,137.34,15.77237798]
[1726348298444,0.253926,137.39,137.34,18.18441203]
[1726348299066,0.253926,137.39,137.34,14.31644249]
[1726348299272,0.253926,137.39,137.35,3.86789152]
[1726348299767,0.253926,137.39,137.36,3.86789152]
[1726348299961,0.253926,137.39,137.33,14.31644249]
[1726348300169,0.253926,137.39,137.34,3.86804524]
[1726348300471,0.253926,137.39,137.35,3.86804524]
[1726348300671,0.253926,137.39,137.33,14.31644249]
[1726348300972,0.253926,137.39,137.34,3.86804381]
[1726348301183,0.253926,137.39,137.35,3.86804381]
[1726348301376,0.253926,137.39,137.33,14.31644249]
[1726348301871,0.253926,137.39,137.34,3.86804524]
[1726348302258,0.253926,137.39,137.35,3.86804524]
[1726348302573,0.253926,137.39,137.33,14.31644249]
[1726348302777,0.253926,137.39,137.34,3.86804524]
[1726348303079,0.253926,137.39,137.35,3.86804524]
[1726348303365,0.253926,137.39,137.34,3.86804524]
[1726348303570,0.253926,137.39,137.32,20.0]
[1726348303772,0.253926,137.39,137.33,3.86823685]
[1726348303969,0.253926,137.39,137.34,3.86823685]
[1726348304148,0.253926,137.39,137.35,3.86823685]
[1726348304348,0.253926,137.39,137.33,3.86802682]
[1726348304550,0.253926,137.39,137.34,3.86802682]
[1726348304769,0.253926,137.39,137.35,3.86802682]
[1726348304976,0.253926,137.39,137.33,3.86802682]
[1726348305756,0.253926,137.39,137.34,3.86802826]
[1726348306254,0.253926,137.39,137.35,3.86802826]
[1726348306451,0.253926,137.39,137.34,3.86802826]
[1726348306662,0.253926,137.39,137.35,3.86802826]
[1726348306861,0.253926,137.39,137.34,3.86802826]
[1726348307270,0.253926,137.39,137.35,3.86802826]
[1726348307462,0.253926,137.39,137.33,3.86802826]
[1726348307662,0.253926,137.39,137.34,3.86802826]
[1726348307867,0.253926,137.39,137.35,3.86802826]
[1726348308073,0.253926,137.39,137.33,3.86802826]
[1726348308273,0.253926,137.39,137.34,3.86802826]
[1726348308460,0.253926,137.39,137.32,34.31644249]
[1726348308859,0.253926,137.39,137.35,3.86804569]
[1726348309094,0.253926,137.39,137.33,3.86804569]
[1726348309663,0.253926,137.39,137.34,3.86804569]
[1726348309961,0.253926,137.39,137.32,3.86804569]
[1726348310161,0.253926,137.39,137.33,3.86804569]
[1726348310361,0.253926,137.39,137.34,3.86804569]
[1726348310588,0.253926,137.39,137.32,3.86804569]
[1726348310770,0.253926,137.39,137.38,14.31644249]
[1726348310967,0.253926,137.39,137.38,34.31644249]
[1726348311182,0.253926,137.39,137.38,38.18241515]
[1726348311376,0.253926,137.39,137.38,3.86597266]
[1726348311693,0.253926,137.39,137.38,34.31644249]
[1726348312789,0.253926,137.39,137.38,38.18103438]
[1726348316386,0.253926,137.39,137.38,3.86459189]
[1726348316592,0.253926,137.39,137.37,3.86459189]
[1726348316791,0.253926,137.39,137.38,3.86459189]
[1726348317096,0.253926,137.39,137.37,3.86459189]
[1726348317300,0.253926,137.39,137.38,3.86459189]
[1726348317465,0.253926,137.39,137.37,3.86459189]
[1726348317671,0.253926,137.39,137.38,3.86459189]
[1726348317874,0.253926,137.39,137.37,3.86459189]
[1726348318080,0.253926,137.39,137.38,3.86459189]
[1726348318398,0.253926,137.39,137.37,3.86459189]
[1726348318589,0.253926,137.39,137.38,3.86459189]
[1726348318772,0.253926,137.39,137.37,3.86459189]
[1726348319104,0.253926,137.39,137.38,3.86459189]
[1726348319391,0.253926,137.39,137.38,23.86473486]
[1726348319896,0.253926,137.39,137.37,23.86473486]
[1726348320103,0.253926,137.39,137.38,3.86473486]
[1726348325501,0.253926,137.39,137.37,23.86473486]
[1726348325804,0.253926,137.39,137.38,3.86473486]
[1726348326400,0.253926,137.39,137.37,23.86473486]
[1726348328207,0.253926,137.39,137.38,3.86473486]
[1726348330410,0.253926,137.39,137.37,23.86473486]
[1726348331203,0.253926,137.39,137.38,3.86473486]
[1726348331710,0.253926,137.39,137.37,20.0]
[1726348332214,0.253926,137.39,137.38,3.86185419]
[1726348332408,0.253926,137.39,137.37,23.86185419]
[1726348333010,0.253926,137.39,137.37,3.86185419]
[1726348333312,0.253926,137.39,137.38,21.45552988]
[1726348333609,0.253926,137.39,137.38,25.31738407]
[1726348334013,0.253926,137.39,137.38,39.63382656]
[1726348334214,0.253926,137.39,137.38,38.17829668]
[1726348338609,0.253926,137.39,137.38,34.31644249]
[1726348339132,0.253926,137.39,137.38,38.17703283]
[1726348341716,0.253926,137.39,137.38,38.17701519]
[1726348345236,0.253926,137.39,137.38,34.31644249]
[1726348345532,0.253926,137.39,137.38,20.0]
[1726348345705,0.253926,137.39,137.38,23.8608993]
[1726348345910,0.253926,137.39,137.38,20.0]
[1726348346219,0.253926,137.39,137.37,3.8608993]
[1726348347127,0.253926,137.39,137.36,23.8608993]
[1726348347429,0.253926,137.39,137.37,3.8608993]
[1726348348509,0.253926,137.39,137.36,20.0]
[1726348348713,0.253926,137.39,137.37,3.86185696]
[1726348349024,0.253926,137.39,137.36,20.0]
[1726348349227,0.253926,137.39,137.37,3.86183323]
[1726348350439,0.253926,137.39,137.38,3.86183323]
[1726348350729,0.253926,137.39,137.37,3.86183323]
[1726348350935,0.253926,137.39,137.38,3.86183323]
[1726348351104,0.253926,137.39,137.37,3.86183323]
[1726348351302,0.253926,137.39,137.38,3.86183323]
[1726348351528,0.253926,137.39,137.37,3.86183323]
[1726348351701,0.253926,137.39,137.38,3.86183323]
[1726348352107,0.253926,137.39,137.36,20.0]
[1726348352315,0.253926,137.39,137.36,34.31644249]
[1726348352506,0.253926,137.39,137.37,3.86176361]
[1726348352703,0.253926,137.39,137.38,3.86176361]
[1726348358648,0.253926,137.39,137.36,34.31644249]
[1726348358937,0.253926,137.39,137.38,3.86121597]
[1726348359312,0.253926,137.39,137.37,3.86121597]
[1726348359513,0.253926,137.39,137.36,34.31644249]
[1726348359720,0.253926,137.39,137.37,14.31644249]
[1726348359916,0.253926,137.39,137.38,20.0]
[1726348374987,0.253926,137.39,137.38,21.45530943]
[1726348376084,0.253926,137.39,137.38,21.70628943]
[1726348376270,0.253926,137.39,137.38,16.02273192]
[1726348376584,0.253926,137.39,137.38,36.02273192]
[1726348380097,0.253926,137.39,137.38,34.56742249]
[1726348381280,0.253926,137.39,137.36,20.0]
[1726348381505,0.253926,137.39,137.38,20.0]